bitfinex/quotes_SOLUSD_20230116
["timestamp","ask_amount","ask_price","bid_price","bid_amount"]
[1673851905948,2.69543,24.348,24.304,20.0]
[1673851906163,110.2382,24.349,24.306,127.6]
[1673851906491,110.2382,24.349,24.308,127.6]
[1673851906898,19.18,24.36,24.31,146.7]
[1673851907117,19.18,24.36,24.312,127.6]
[1673851907532,19.18,24.36,24.314,127.6]
[1673851907743,110.4308,24.364,24.321,20.0]
[1673851908282,21.46196354,24.373,24.33,19.0]
[1673851908586,518.6,24.38,24.332,127.6]
[1673851908587,110.4308,24.374,24.332,127.6]
[1673851908804,110.4308,24.374,24.334,20.0]
[1673851909020,110.4308,24.374,24.336,127.6]
[1673851909203,518.62,24.38,24.338,127.6]
[1673851909542,518.62,24.38,24.339,20.0]
[1673851909746,20.0,24.379,24.34,20.0]
[1673851910164,20.0,24.379,24.34,188.31560217]
[1673851910356,20.0,24.379,24.341,40.67980883]
[1673851910785,499.5,24.38,24.343,20.0]
[1673851911197,499.5,24.38,24.351,20.0]
[1673851911409,499.5,24.38,24.352,20.0]
[1673851911622,499.5,24.38,24.352,195.52626484]
[1673851911833,499.5,24.38,24.355,40.82]
[1673851912044,499.5,24.38,24.356,147.6]
[1673851912272,499.5,24.38,24.356,67.92626484]
[1673851912480,499.5,24.38,24.357,116.13338145]
[1673851912808,499.5,24.38,24.359,20.0]
[1673851913111,499.5,24.38,24.36,62.15054217]
[1673851913305,499.5,24.38,24.362,40.82]
[1673851913513,499.5,24.38,24.365,127.6]
[1673851913842,425.01237103,24.38,24.37,19.13]
[1673851914055,395.60005027,24.38,24.371,20.0]
[1673851914258,368.24076112,24.38,24.372,20.0]
[1673851914472,368.24076112,24.38,24.373,20.0]
[1673851914693,368.24076112,24.38,24.374,20.0]
[1673851915012,368.24076112,24.38,24.375,20.0]
[1673851915013,126.82076112,24.38,24.375,20.0]
[1673851915217,119.1564,24.413,24.38,66.93712262]
[1673851915427,111.7599,24.427,24.381,20.0]
[1673851915634,21.46196354,24.423,24.382,20.0]
[1673851915858,21.46196354,24.423,24.384,20.0]
[1673851916044,20.0,24.422,24.385,20.0]
[1673851916252,21.46196354,24.423,24.386,20.0]
[1673851916465,117.5111,24.426,24.386,72.77959817]
[1673851916682,20.0,24.425,24.388,20.0]
[1673851916891,20.0,24.425,24.389,20.0]
[1673851917107,20.0,24.425,24.389,72.77959817]
[1673851917428,117.5111,24.426,24.39,93.37156171]
[1673851917626,117.5111,24.426,24.392,20.0]
[1673851917833,117.5111,24.426,24.393,20.0]
[1673851918052,117.5111,24.426,24.394,20.0]
[1673851918253,117.5111,24.426,24.395,20.0]
[1673851918466,117.5111,24.426,24.396,20.0]
[1673851918675,40.82,24.435,24.398,20.0]
[1673851918893,40.82,24.435,24.399,20.0]
[1673851919104,132.5796,24.44,24.399,20.0]
[1673851919105,40.82,24.443,24.401,127.6]
[1673851919321,40.82,24.443,24.404,20.0]
[1673851919528,18.97,24.44,24.405,20.0]
[1673851919738,18.97,24.44,24.402,24.14982354]
[1673851919739,60.82,24.439,24.402,46.66440684]
[1673851920039,20.0,24.438,24.402,21.46196354]
[1673851920670,40.82,24.439,24.403,22.68775]
[1673851920914,19.13,24.45,24.443,94.89025742]
[1673851921098,40.82,24.455,24.44,115.47838689]
[1673851921633,40.82,24.455,24.44,110.73111015]
[1673851921949,40.82,24.459,24.44,110.73111015]
[1673851922140,139.4087,24.478,24.411,21.03244425]
[1673851922141,40.9243203,24.436,24.411,21.03244425]
[1673851922352,2.69543,24.435,24.39,42.0648885]
[1673851922680,185.42743949,24.434,24.337,68.11552539]
[1673851922887,19.05,24.38,24.366,2.49030085]
[1673851923088,19.05,24.38,24.367,68.93145985]
[1673851923850,19.05,24.38,24.338,2.69493]
[1673851923851,122.01840813,24.367,24.335,189.98323047]
[1673851924035,19.13,24.35,24.335,189.98323047]
[1673851924692,20.0,24.348,24.335,189.98323047]
[1673851925113,94.59951844,24.348,24.335,189.98323047]
[1673851925331,86.57955616,24.347,24.335,189.98323047]
[1673851925526,20.0,24.348,24.335,189.98323047]
[1673851925731,20.0,24.348,24.335,125.23595373]
[1673851925945,19.13,24.35,24.335,125.23595373]
[1673851926363,19.13,24.35,24.335,124.83595373]
[1673851926576,19.13,24.35,24.336,20.0]
[1673851927828,19.13,24.35,24.335,124.83595373]
[1673851928042,11.99,24.36,24.335,124.83595373]
[1673851928261,11.99,24.36,24.336,20.0]
[1673851929524,21.46196354,24.359,24.336,20.0]
[1673851929947,21.46196354,24.359,24.335,124.83595373]
[1673851930578,20.0,24.357,24.335,124.83595373]
[1673851930776,12.0,24.35,24.335,124.83595373]
[1673851931306,61.93681274,24.349,24.335,124.83595373]
[1673851931517,20.0,24.348,24.335,98.14425373]
[1673851931721,41.46196354,24.348,24.335,98.14425373]
[1673851931959,20.0,24.348,24.335,98.14425373]
[1673851932149,41.46196354,24.348,24.335,98.14425373]
[1673851932354,40.4748492,24.347,24.291,20.0]
[1673851932577,11.92,24.34,24.304,20.0]
[1673851932995,63.84347941,24.339,24.304,20.0]
[1673851933202,63.84347941,24.339,24.291,20.0]
[1673851933414,42.38151587,24.338,24.282,60.82]
[1673851933634,11.98,24.33,24.282,20.0]
[1673851933842,11.98,24.33,24.293,21.93089762]
[1673851934260,21.46196354,24.329,24.301,33.70871364]
[1673851934472,20.0,24.337,24.304,20.0]
[1673851934705,20.0,24.346,24.305,2.69859]
[1673851934917,20.0,24.357,24.305,62.1515346]
[1673851935127,21.46196354,24.346,24.306,33.70871364]
[1673851935318,21.46196354,24.346,24.307,2.69837]
[1673851935533,20.0,24.355,24.308,20.0]
[1673851935752,20.0,24.355,24.31,20.0]
[1673851935964,21.46196354,24.354,24.311,22.69793]
[1673851936368,20.0,24.353,24.312,20.0]
[1673851936585,20.0,24.353,24.312,22.69781]
[1673851936793,21.46196354,24.352,24.312,22.69781]
[1673851937023,21.46196354,24.352,24.312,20.0]
[1673851937431,20.0,24.353,24.312,22.69781]
[1673851937644,20.0,24.353,24.313,20.0]
[1673851937852,108.2182,24.356,24.313,20.0]
[1673851938061,20.0,24.355,24.315,20.0]
[1673851938276,41.46196354,24.355,24.316,20.0]
[1673851938484,20.0,24.355,24.317,20.0]
[1673851938709,21.46196354,24.354,24.318,20.0]
[1673851938908,21.46196354,24.354,24.318,25.74423096]
[1673851939113,20.0,24.353,24.308,20.0]
[1673851939315,20.0,24.353,24.309,2.69815]
[1673851939525,20.0,24.351,24.309,26.72811429]
[1673851939740,20.0,24.351,24.309,2.69815]
[1673851940083,54.90392708,24.35,24.303,102.863756]
[1673851940262,12.01,24.34,24.303,102.863756]
[1673851941119,21.46196354,24.339,24.303,102.863756]
[1673851941435,21.46196354,24.339,24.304,20.0]
[1673851941646,21.46196354,24.339,24.303,102.863756]
[1673851941861,12.01,24.34,24.303,102.863756]
[1673851942052,20.0,24.338,24.303,102.863756]
[1673851942470,21.46196354,24.337,24.303,102.863756]
[1673851942912,21.46196354,24.337,24.304,20.0]
[1673851943221,20.0,24.336,24.303,102.863756]
[1673851943622,21.46196354,24.335,24.303,102.863756]
[1673851943832,20.0,24.336,24.304,24.02996429]
[1673851943833,20.0,24.334,24.304,24.02996429]
[1673851944043,21.46196354,24.335,24.304,24.02996429]
[1673851944254,20.0,24.339,24.303,102.863756]
[1673851944462,20.0,24.339,24.304,20.0]
[1673851944685,137.68,24.349,24.304,20.0]
[1673851944896,12.0,24.34,24.304,20.0]
[1673851945541,2.49030087,24.339,24.304,20.0]
[1673851945959,21.46196354,24.338,24.303,102.863756]
[1673851946167,20.0,24.336,24.303,102.863756]
[1673851946572,23.95226441,24.335,24.303,102.863756]
[1673851947012,12.0,24.33,24.303,102.863756]
[1673851947222,22.49030087,24.329,24.303,102.863756]
[1673851947436,43.95226441,24.329,24.303,102.863756]
[1673851947744,2.49030087,24.329,24.303,130.44705362]
[1673851947943,2.49030087,24.329,24.303,102.863756]
[1673851948368,21.46196354,24.328,24.303,102.863756]
[1673851948579,2.49030087,24.327,24.303,102.863756]
[1673851948794,12.0,24.32,24.303,74.111556]
[1673851949111,2.49030087,24.319,24.303,74.111556]
[1673851949522,23.95226441,24.319,24.303,74.111556]
[1673851949850,2.49030087,24.319,24.303,74.111556]
[1673851950058,2.49030087,24.319,24.304,38.30204697]
[1673851950250,2.49030087,24.319,24.305,20.0]
[1673851950906,2.49030087,24.319,24.306,38.30204697]
[1673851951102,2.49030087,24.319,24.305,20.0]
[1673851951950,2.49030087,24.319,24.304,20.0]
[1673851952164,2.49030087,24.319,24.303,74.111556]
[1673851953620,23.95226441,24.319,24.303,74.111556]
[1673851953844,2.49030087,24.319,24.303,74.111556]
[1673851954041,61.1900307,24.318,24.303,0.001556]
[1673851954370,12.0,24.32,24.303,0.001556]
[1673851954371,20.0,24.316,24.303,0.001556]
[1673851954596,111.8908,24.315,24.303,0.001556]
[1673851954784,173.0808307,24.315,24.303,0.001556]
[1673851954996,22.49030087,24.314,24.303,0.001556]
[1673851955207,2.49030087,24.314,24.303,0.001556]
[1673851955843,21.46196354,24.313,24.303,0.001556]
[1673851956053,2.49030087,24.312,24.303,0.001556]
[1673851956677,20.0,24.31,24.303,0.001556]
[1673851956884,2.49030087,24.309,24.303,0.001556]
[1673851959514,2.49030087,24.309,24.304,39.08988164]
[1673851959728,2.49030087,24.309,24.303,0.001556]
[1673851961295,20.0,24.329,24.304,127.6]
[1673851961507,186.67003503,24.37,24.304,127.6]
[1673851961508,139.0504,24.359,24.316,2.49030087]
[1673851961735,139.0504,24.359,24.317,2.69726]
[1673851962137,139.0504,24.359,24.318,52.27312556]
[1673851962348,139.0504,24.359,24.318,30.81116202]
[1673851962568,160.51236354,24.359,24.319,52.27312556]
[1673851962785,160.51236354,24.359,24.32,20.0]
[1673851963092,160.51236354,24.359,24.321,20.0]
[1673851963304,119.0504,24.359,24.322,37.0]
[1673851963518,20.0,24.358,24.323,20.0]
[1673851963705,41.46196354,24.358,24.324,37.0]
[1673851963920,20.0,24.358,24.324,37.0]
[1673851964144,21.46196354,24.357,24.324,37.0]
[1673851964582,20.0,24.356,24.324,37.0]
[1673851965186,20.0,24.356,24.325,20.0]
[1673851965409,20.0,24.356,24.326,17.0]
[1673851966755,139.0504,24.359,24.326,17.0]
[1673851966965,119.0504,24.359,24.327,28.345263]
[1673851967185,20.0,24.358,24.328,20.0]
[1673851967387,21.46196354,24.367,24.328,20.0]
[1673851967601,12.0,24.36,24.328,37.06397031]
[1673851967813,21.46196354,24.359,24.328,37.06397031]
[1673851968040,20.0,24.358,24.319,26.525263]
[1673851968243,20.0,24.358,24.303,0.001556]
[1673851968471,20.0,24.358,24.31,21.46196354]
[1673851968686,21.46196354,24.357,24.31,21.46196354]
[1673851968882,20.0,24.356,24.31,21.46196354]
[1673851969094,20.0,24.356,24.311,20.0]
[1673851969305,21.46196354,24.355,24.311,20.0]
[1673851969510,11.95,24.38,24.314,21.46196354]
[1673851969832,11.95,24.38,24.315,2.69748]
[1673851969833,21.46196354,24.36,24.315,2.69748]
[1673851970044,116.4005,24.373,24.316,20.0]
[1673851970045,12.0,24.37,24.316,20.0]
[1673851970249,14.69543,24.37,24.316,20.0]
[1673851970447,21.46196354,24.369,24.316,20.0]
[1673851970658,11.98,24.36,24.317,20.0]
[1673851971091,11.98,24.36,24.318,20.0]
[1673851971300,21.46196354,24.359,24.319,20.0]
[1673851971836,20.0,24.358,24.32,20.0]
[1673851972026,20.0,24.358,24.316,27.44908885]
[1673851972235,11.98,24.35,24.321,37.06397031]
[1673851972451,11.98,24.35,24.291,20.0]
[1673851972670,11.92,24.34,24.299,21.46196354]
[1673851972976,11.92,24.34,24.281,20.0]
[1673851972977,22.69543,24.339,24.284,20.0]
[1673851973401,20.0,24.337,24.285,2.70081]
[1673851973828,41.46196354,24.337,24.285,2.70081]
[1673851974654,12.01,24.33,24.285,2.70081]
[1673851975843,12.0,24.35,24.303,127.601556]
[1673851976020,20.0,24.356,24.304,20.0]
[1673851976231,21.46196354,24.355,24.304,22.6987]
[1673851976441,21.46196354,24.355,24.305,2.69859]
[1673851976651,20.0,24.356,24.306,20.0]
[1673851976863,20.0,24.356,24.308,127.6]
[1673851977071,20.0,24.356,24.306,20.0]
[1673851977072,20.0,24.356,24.31,147.6]
[1673851977293,20.0,24.361,24.312,147.6]
[1673851977515,20.0,24.361,24.314,147.6]
[1673851977702,20.0,24.369,24.316,127.6]
[1673851977914,20.0,24.369,24.318,127.6]
[1673851978123,20.0,24.369,24.319,42.69704]
[1673851978333,20.0,24.369,24.319,22.69704]
[1673851978549,21.46196354,24.368,24.32,20.0]
[1673851978754,20.0,24.367,24.32,20.0]
[1673851979074,20.0,24.367,24.322,20.0]
[1673851979388,21.46196354,24.366,24.323,22.69659]
[1673851979625,21.46196354,24.366,24.32,20.0]
[1673851979626,20.0,24.365,24.32,20.0]
[1673851980157,20.0,24.365,24.315,20.0]
[1673851980350,21.46196354,24.364,24.315,20.0]
[1673851980686,11.98,24.35,24.285,147.6]
[1673851980886,224.9061,24.349,24.306,28.57575552]
[1673851981085,20.0,24.348,24.287,127.6]
[1673851981289,20.0,24.348,24.288,150.30048]
[1673851981830,21.46196354,24.347,24.289,2.70037]
[1673851982036,20.0,24.346,24.289,2.70037]
[1673851982447,20.0,24.346,24.293,149.06196354]
[1673851982657,41.46196354,24.346,24.294,20.0]
[1673851982868,20.0,24.346,24.299,28.57575552]
[1673851983097,12.09,24.36,24.304,127.6]
[1673851983296,20.0,24.361,24.305,2.69859]
[1673851983503,20.0,24.361,24.306,127.6]
[1673851983712,20.0,24.361,24.305,72.73630906]
[1673851983713,20.0,24.361,24.308,147.6]
[1673851983936,20.0,24.361,24.309,150.29815]
[1673851984141,20.0,24.361,24.31,2.69804]
[1673851984549,20.0,24.361,24.311,127.6]
[1673851984764,20.0,24.361,24.313,127.6]
[1673851984982,20.0,24.361,24.315,147.6]
[1673851985186,20.0,24.361,24.316,150.29737]
[1673851985399,20.0,24.361,24.317,2.69726]
[1673851985609,41.46196354,24.361,24.317,2.69726]
[1673851985825,20.0,24.361,24.317,2.69726]
[1673851986020,20.0,24.37,24.317,2.69726]
[1673851986231,20.0,24.37,24.319,127.6]
[1673851986438,20.0,24.37,24.321,2.69682]
[1673851986651,20.0,24.37,24.321,130.29682]
[1673851986861,137.9907,24.378,24.323,147.6]
[1673851986862,41.46196354,24.374,24.323,147.6]
[1673851987109,41.46196354,24.374,24.324,2.69648]
[1673851987309,21.46196354,24.369,24.324,2.69648]
[1673851987493,20.0,24.374,24.325,127.6]
[1673851987819,20.0,24.374,24.328,127.6]
[1673851988012,20.0,24.377,24.33,127.6]
[1673851988222,20.0,24.377,24.332,127.6]
[1673851988557,20.0,24.377,24.334,127.6]
[1673851988878,20.0,24.377,24.333,2.69549]
[1673851989065,21.46196354,24.375,24.333,2.69549]
[1673851989276,20.0,24.377,24.333,2.69549]
[1673851990117,20.0,24.377,24.333,31.27124552]
[1673851990333,20.0,24.377,24.333,158.87124552]
[1673851990543,20.0,24.377,24.333,130.29549]
[1673851990753,20.0,24.377,24.334,20.0]
[1673851990964,20.0,24.387,24.336,127.6]
[1673851991178,20.0,24.387,24.337,20.0]
[1673851991395,11.89,24.41,24.339,2.69482]
[1673851991614,21.46196354,24.397,24.34,127.6]
[1673851991807,20.0,24.412,24.343,127.6]
[1673851992019,21.46196354,24.409,24.345,2.69416]
[1673851992221,20.0,24.412,24.345,2.69416]
[1673851992434,21.46196354,24.411,24.345,2.69416]
[1673851992870,32.0,24.41,24.346,20.0]
[1673851993070,32.0,24.41,24.347,2.69394]
[1673851993403,11.92,24.4,24.347,2.69394]
[1673851993589,20.0,24.399,24.347,2.69394]
[1673851993801,41.46196354,24.399,24.347,2.69394]
[1673851994009,21.46196354,24.398,24.347,2.69394]
[1673851994219,11.89,24.39,24.347,22.69394]
[1673851994639,41.46196354,24.389,24.347,2.69394]
[1673851994879,150.36186354,24.389,24.347,2.69394]
[1673851995184,12.0,24.38,24.347,2.69394]
[1673851995378,12.0,24.38,24.323,20.0]
[1673851995588,21.46196354,24.379,24.328,2.69604]
[1673851995808,20.0,24.378,24.328,2.69604]
[1673851996425,20.0,24.378,24.329,127.6]
[1673851996654,41.46196354,24.378,24.33,2.69582]
[1673851997175,20.0,24.378,24.33,2.69582]
[1673851997596,21.46196354,24.377,24.33,2.69582]
[1673851997806,20.0,24.376,24.33,2.69582]
[1673851999275,20.0,24.374,24.33,2.69582]
[1673851999488,1.0,24.378,24.33,19.69582]
[1673851999700,1.0,24.378,24.333,20.0]
[1673851999921,1.0,24.378,24.334,19.69538]
[1673852000232,1.0,24.378,24.335,150.29527]
[1673852000446,1.0,24.378,24.337,20.0]
[1673852000649,1.0,24.378,24.338,147.29493]
[1673852000863,1.0,24.378,24.339,150.29482]
[1673852001070,1.0,24.378,24.34,2.69471]
[1673852001594,20.0,24.376,24.34,2.69471]
[1673852003158,20.0,24.376,24.311,168.42]
[1673852005040,20.0,24.376,24.312,20.0]
[1673852005256,20.0,24.376,24.328,2.69604]
[1673852006945,20.0,24.376,24.328,22.69604]
[1673852007158,30.68664516,24.375,24.328,20.0]
[1673852007474,20.0,24.369,24.312,20.0]
[1673852007687,12.01,24.36,24.303,0.001556]
[1673852007884,20.0,24.359,24.303,0.001556]
[1673852008095,50.68664516,24.359,24.303,0.001556]
[1673852008407,20.0,24.357,24.303,0.001556]
[1673852008622,20.0,24.349,24.303,0.001556]
[1673852008860,112.1637,24.348,24.303,0.001556]
[1673852009164,20.0,24.347,24.303,0.001556]
[1673852010244,30.68664516,24.346,24.303,0.001556]
[1673852010429,11.98,24.34,24.303,0.001556]
[1673852010636,20.0,24.339,24.303,0.001556]
[1673852010845,50.68664516,24.339,24.303,0.001556]
[1673852011052,30.68664516,24.338,24.303,0.001556]
[1673852011271,20.0,24.337,24.303,0.001556]
[1673852012206,30.68664516,24.336,24.303,0.001556]
[1673852012419,20.0,24.335,24.303,0.001556]
[1673852012842,35.62664516,24.334,24.303,0.001556]
[1673852013057,20.0,24.333,24.303,0.001556]
[1673852013600,20.0,24.331,24.303,0.001556]
[1673852013805,20.0,24.329,24.275,40.82]
[1673852014015,0.06,24.3,24.275,40.82]
[1673852014545,0.06,24.3,24.276,20.0]
[1673852014945,40.1447785,24.3,24.27,40.82]
[1673852015365,0.06,24.3,24.271,2.70237]
[1673852015597,0.06,24.3,24.273,40.82]
[1673852015995,0.06,24.3,24.275,20.0]
[1673852016205,0.06,24.3,24.276,2.70182]
[1673852016854,0.06,24.3,24.277,127.6]
[1673852017066,0.06,24.3,24.279,127.6]
[1673852017283,0.06,24.3,24.28,42.70137]
[1673852017677,38.12099156,24.322,24.281,22.70126]
[1673852017909,38.12099156,24.322,24.283,2.70104]
[1673852018626,38.12099156,24.322,24.29,11.93]
[1673852018849,38.12099156,24.322,24.301,20.0]
[1673852019049,38.12099156,24.322,24.303,127.6]
[1673852019262,38.12099156,24.322,24.305,127.6]
[1673852019462,38.12099156,24.322,24.308,20.0]
[1673852019675,38.12099156,24.322,24.309,22.69815]
[1673852019887,38.12099156,24.322,24.31,2.69804]
[1673852020106,38.12099156,24.322,24.311,20.0]
[1673852020321,38.12099156,24.322,24.312,150.29781]
[1673852020531,57.18536957,24.328,24.314,147.6]
[1673852020745,57.18536957,24.328,24.316,127.6]
[1673852020959,57.18536957,24.328,24.317,2.69726]
[1673852021151,76.24575682,24.331,24.317,2.69726]
[1673852021152,76.24575682,24.331,24.318,127.6]
[1673852021355,76.24575682,24.331,24.32,127.6]
[1673852021567,76.24575682,24.331,24.322,147.6]
[1673852021777,76.24575682,24.331,24.323,2.69659]
[1673852022003,76.24575682,24.331,24.324,127.6]
[1673852022213,1.0,24.337,24.326,127.6]
[1673852022428,1.0,24.337,24.327,2.69615]
[1673852023051,1.0,24.337,24.308,20.0]
[1673852023269,1.0,24.337,24.312,2.69781]
[1673852024326,5.74727674,24.337,24.312,2.69781]
[1673852024522,1.0,24.337,24.312,2.69781]
[1673852030099,1.0,24.337,24.3,20.0]
[1673852030314,1.0,24.337,24.301,2.69904]
[1673852032325,1.0,24.337,24.302,20.0]
[1673852032535,1.0,24.337,24.304,20.0]
[1673852032751,1.0,24.337,24.305,22.69859]
[1673852033353,1.0,24.337,24.305,2.69859]
[1673852034429,1.0,24.337,24.283,20.0]
[1673852034627,1.0,24.337,24.298,22.69937]
[1673852034951,22.46196354,24.337,24.299,20.0]
[1673852035165,20.0,24.336,24.298,2.69937]
[1673852035990,41.46196354,24.336,24.298,2.69937]
[1673852037461,20.0,24.336,24.298,2.69937]
[1673852038409,20.0,24.336,24.299,2.69926]
[1673852038823,20.0,24.336,24.3,20.0]
[1673852039034,20.0,24.336,24.301,22.69904]
[1673852039258,20.0,24.336,24.303,20.0]
[1673852039461,37.452831,24.337,24.304,17.0]
[1673852039674,17.452831,24.337,24.305,40.0]
[1673852039886,17.452831,24.337,24.306,17.0]
[1673852040204,106.797631,24.34,24.307,170.29837]
[1673852040523,133.43881503,24.342,24.311,127.6]
[1673852040748,133.43881503,24.342,24.312,22.69781]
[1673852040946,133.43881503,24.342,24.312,171.75977354]
[1673852041140,133.43881503,24.342,24.314,20.0]
[1673852041347,133.43881503,24.342,24.308,20.0]
[1673852041348,20.0,24.341,24.315,2.69748]
[1673852041572,34.96196354,24.341,24.304,20.0]
[1673852041786,40.09538805,24.34,24.29,20.0]
[1673852042099,20.0,24.339,24.298,21.46196354]
[1673852042293,20.0,24.339,24.299,20.0]
[1673852042507,20.0,24.339,24.298,24.16133354]
[1673852042722,61.55735159,24.338,24.298,2.69937]
[1673852042935,20.0,24.337,24.282,20.0]
[1673852043133,60.09538805,24.337,24.282,20.0]
[1673852043344,40.09538805,24.336,24.282,20.0]
[1673852043560,55.05735159,24.336,24.29,21.46196354]
[1673852043891,20.0,24.334,24.29,21.46196354]
[1673852044196,40.09538805,24.333,24.29,21.46196354]
[1673852044414,20.0,24.332,24.288,24.09673156]
[1673852044599,34.96196354,24.332,24.288,24.09673156]
[1673852044818,40.09538805,24.331,24.288,24.09673156]
[1673852045026,61.55735159,24.331,24.282,20.0]
[1673852045242,20.0,24.33,24.282,20.0]
[1673852045450,81.55735159,24.33,24.282,20.0]
[1673852045679,40.09538805,24.329,24.282,20.0]
[1673852045983,61.55735159,24.329,24.282,20.0]
[1673852046197,20.0,24.328,24.282,20.0]
[1673852046408,60.09538805,24.328,24.282,20.0]
[1673852046723,20.0,24.33,24.298,20.0]
[1673852047149,34.96196354,24.33,24.298,20.0]
[1673852047350,20.0,24.33,24.298,20.0]
[1673852047560,21.46196354,24.329,24.282,20.0]
[1673852047965,40.09538805,24.328,24.282,20.0]
[1673852048182,20.0,24.327,24.282,20.0]
[1673852048389,41.46196354,24.327,24.282,20.0]
[1673852048604,61.48291359,24.326,24.29,24.09673156]
[1673852048814,20.0,24.325,24.29,24.09673156]
[1673852049357,20.0,24.325,24.298,20.0]
[1673852050206,20.0,24.325,24.299,20.0]
[1673852050422,20.0,24.325,24.289,20.0]
[1673852051980,14.96196354,24.324,24.289,20.0]
[1673852052297,14.96196354,24.324,24.298,20.0]
[1673852053047,20.0,24.325,24.298,20.0]
[1673852053357,61.48291359,24.324,24.298,20.0]
[1673852053785,20.0,24.325,24.299,20.0]
[1673852053964,20.0,24.325,24.298,20.0]
[1673852054180,41.46196354,24.325,24.298,20.0]
[1673852055989,81.48291359,24.325,24.298,20.0]
[1673852056814,81.48291359,24.325,24.289,20.0]
[1673852056815,81.48291359,24.325,24.284,20.0]
[1673852057025,14.96196354,24.324,24.284,20.0]
[1673852057445,60.02095005,24.323,24.284,20.0]
[1673852057867,61.48291359,24.322,24.284,20.0]
[1673852058070,20.0,24.321,24.28,40.82]
[1673852058397,60.02095005,24.321,24.281,2.70126]
[1673852058607,20.0,24.319,24.281,2.70126]
[1673852058822,20.0,24.319,24.282,20.0]
[1673852059034,41.46196354,24.319,24.297,16.461045]
[1673852059245,20.0,24.319,24.297,16.461045]
[1673852059467,81.48291359,24.319,24.297,16.461045]
[1673852061029,21.46196354,24.318,24.297,16.461045]
[1673852061235,20.0,24.317,24.297,16.461045]
[1673852061657,41.46196354,24.317,24.297,16.461045]
[1673852062065,20.0,24.315,24.279,40.82]
[1673852062485,61.48291359,24.314,24.279,40.82]
[1673852062925,61.48291359,24.313,24.279,40.82]
[1673852063119,20.0,24.312,24.279,40.82]
[1673852063447,134.5898509,24.312,24.271,40.82]
[1673852063642,65.20958025,24.311,24.271,40.82]
[1673852063852,20.0,24.31,24.274,40.82]
[1673852064067,78.70958025,24.31,24.274,40.82]
[1673852064267,21.46196354,24.309,24.276,40.82]
[1673852064701,20.0,24.308,24.276,40.82]
[1673852064903,61.89885205,24.308,24.276,40.82]
[1673852065109,20.0,24.306,24.276,40.82]
[1673852065323,20.0,24.306,24.273,16.474762]
[1673852065324,20.0,24.306,24.277,40.82]
[1673852065741,20.0,24.308,24.279,40.82]
[1673852065951,20.0,24.308,24.28,60.82]
[1673852066178,20.0,24.308,24.28,40.82]
[1673852066400,20.0,24.306,24.28,40.82]
[1673852066706,41.89885205,24.305,24.28,40.82]
[1673852066919,20.0,24.304,24.28,40.82]
[1673852067232,45.10551871,24.303,24.28,40.82]
[1673852067419,20.0,24.302,24.28,40.82]
[1673852067839,20.0,24.3,24.28,40.82]
[1673852068258,20.0,24.321,24.282,20.0]